Workbook

Sheet 直結給水損失水頭計算表
A1: 様式10号
A2: 給水装置損失水頭計算書 | K2: 係員 | R2: 検算 | Y2: 水栓番号 第 | AJ2: 号 | AO2: 業務.1家事.2 | AT2: 1 | AU2: 口径 | AW2: 栓数 | AY2: 総流量 | BB2: 流量 | BF2: 動水 | BI2: 実延長 | BL2: 換算長 | BO2: 長さ合計 | BR2: 損失水頭 | BU2: 流速
BF3: 勾配
AO4: 区 間
AU5: ㎜ | AW5: 栓 | AY5: ℓ/min | BB5: ℓ/min | BD5: ℓ/sec | BF5: ‰ | BI5: m | BL5: m | BO5: m | BR5: m | BU5: m/sec
A6: 工事店及技術者 | S6: 申込者 | AQ6: ～ | BD6: =IF(BB6="","",BB6/60) ->  | BO6: =IF(AU6="","",BI6+BL6) ->  | BR6: =IF(AU6="","",(0.0126+(((0.01739-(0.1087*(AU6/1000)))/SQRT(BU6))))*(BO6/(AU6/1000))*(POWER(BU6,2)/(2*9.8))) ->  | BU6: =IF(AU6="","",(BB6/1000/60)/((3.141592*POWER((AU6/2/1000),2)))) ->  | BW6: =IF(BU6="","",IF(BU6<2,"","×")) -> 
AQ8: ～ | BD8: =IF(BB8="","",BB8/60) ->  | BO8: =IF(AU8="","",BI8+BL8) ->  | BR8: =IF(AU8="","",(0.0126+(((0.01739-(0.1087*(AU8/1000)))/SQRT(BU8))))*(BO8/(AU8/1000))*(POWER(BU8,2)/(2*9.8))) ->  | BU8: =IF(AU8="","",(BB8/1000/60)/((3.141592*POWER((AU8/2/1000),2)))) ->  | BW8: =IF(BU8="","",IF(BU8<2,"","×")) -> 
A10: 図 面 | AQ10: ～ | BD10: =IF(BB10="","",BB10/60) ->  | BO10: =IF(AU10="","",BI10+BL10) ->  | BR10: =IF(AU10="","",(0.0126+(((0.01739-(0.1087*(AU10/1000)))/SQRT(BU10))))*(BO10/(AU10/1000))*(POWER(BU10,2)/(2*9.8))) ->  | BU10: =IF(AU10="","",(BB10/1000/60)/((3.141592*POWER((AU10/2/1000),2)))) ->  | BW10: =IF(BU10="","",IF(BU10<2,"","×")) -> 
AQ12: ～ | BD12: =IF(BB12="","",BB12/60) ->  | BO12: =IF(AU12="","",BI12+BL12) ->  | BR12: =IF(AU12="","",(0.0126+(((0.01739-(0.1087*(AU12/1000)))/SQRT(BU12))))*(BO12/(AU12/1000))*(POWER(BU12,2)/(2*9.8))) ->  | BU12: =IF(AU12="","",(BB12/1000/60)/((3.141592*POWER((AU12/2/1000),2)))) ->  | BW12: =IF(BU12="","",IF(BU12<2,"","×")) -> 
AQ14: ～ | BD14: =IF(BB14="","",BB14/60) ->  | BO14: =IF(AU14="","",BI14+BL14) ->  | BR14: =IF(AU14="","",(0.0126+(((0.01739-(0.1087*(AU14/1000)))/SQRT(BU14))))*(BO14/(AU14/1000))*(POWER(BU14,2)/(2*9.8))) ->  | BU14: =IF(AU14="","",(BB14/1000/60)/((3.141592*POWER((AU14/2/1000),2)))) ->  | BW14: =IF(BU14="","",IF(BU14<2,"","×")) -> 
AQ16: ～ | BD16: =IF(BB16="","",BB16/60) ->  | BO16: =IF(AU16="","",BI16+BL16) ->  | BR16: =IF(AU16="","",(0.0126+(((0.01739-(0.1087*(AU16/1000)))/SQRT(BU16))))*(BO16/(AU16/1000))*(POWER(BU16,2)/(2*9.8))) ->  | BU16: =IF(AU16="","",(BB16/1000/60)/((3.141592*POWER((AU16/2/1000),2)))) ->  | BW16: =IF(BU16="","",IF(BU16<2,"","×")) -> 
AQ18: ～ | BD18: =IF(BB18="","",BB18/60) ->  | BO18: =IF(AU18="","",BI18+BL18) ->  | BR18: =IF(AU18="","",(0.0126+(((0.01739-(0.1087*(AU18/1000)))/SQRT(BU18))))*(BO18/(AU18/1000))*(POWER(BU18,2)/(2*9.8))) ->  | BU18: =IF(AU18="","",(BB18/1000/60)/((3.141592*POWER((AU18/2/1000),2)))) ->  | BW18: =IF(BU18="","",IF(BU18<2,"","×")) -> 
AQ20: ～ | BD20: =IF(BB20="","",BB20/60) ->  | BO20: =IF(AU20="","",BI20+BL20) ->  | BR20: =IF(AU20="","",(0.0126+(((0.01739-(0.1087*(AU20/1000)))/SQRT(BU20))))*(BO20/(AU20/1000))*(POWER(BU20,2)/(2*9.8))) ->  | BU20: =IF(AU20="","",(BB20/1000/60)/((3.141592*POWER((AU20/2/1000),2)))) ->  | BW20: =IF(BU20="","",IF(BU20<2,"","×")) -> 
AQ22: ～ | BD22: =IF(BB22="","",BB22/60) ->  | BO22: =IF(AU22="","",BI22+BL22) ->  | BR22: =IF(AU22="","",(0.0126+(((0.01739-(0.1087*(AU22/1000)))/SQRT(BU22))))*(BO22/(AU22/1000))*(POWER(BU22,2)/(2*9.8))) ->  | BU22: =IF(AU22="","",(BB22/1000/60)/((3.141592*POWER((AU22/2/1000),2)))) ->  | BW22: =IF(BU22="","",IF(BU22<2,"","×")) -> 
AQ24: ～ | BD24: =IF(BB24="","",BB24/60) ->  | BO24: =IF(AU24="","",BI24+BL24) ->  | BR24: =IF(AU24="","",(0.0126+(((0.01739-(0.1087*(AU24/1000)))/SQRT(BU24))))*(BO24/(AU24/1000))*(POWER(BU24,2)/(2*9.8))) ->  | BU24: =IF(AU24="","",(BB24/1000/60)/((3.141592*POWER((AU24/2/1000),2)))) ->  | BW24: =IF(BU24="","",IF(BU24<2,"","×")) -> 
AQ26: ～ | BD26: =IF(BB26="","",BB26/60) ->  | BO26: =IF(AU26="","",BI26+BL26) ->  | BR26: =IF(AU26="","",(0.0126+(((0.01739-(0.1087*(AU26/1000)))/SQRT(BU26))))*(BO26/(AU26/1000))*(POWER(BU26,2)/(2*9.8))) ->  | BU26: =IF(AU26="","",(BB26/1000/60)/((3.141592*POWER((AU26/2/1000),2)))) ->  | BW26: =IF(BU26="","",IF(BU26<2,"","×")) -> 
AQ28: ～ | BD28: =IF(BB28="","",BB28/60) ->  | BO28: =IF(AU28="","",BI28+BL28) ->  | BR28: =IF(AU28="","",(0.0126+(((0.01739-(0.1087*(AU28/1000)))/SQRT(BU28))))*(BO28/(AU28/1000))*(POWER(BU28,2)/(2*9.8))) ->  | BU28: =IF(AU28="","",(BB28/1000/60)/((3.141592*POWER((AU28/2/1000),2)))) ->  | BW28: =IF(BU28="","",IF(BU28<2,"","×")) -> 
BD30: =IF(BB30="","",BB30/60) ->  | BO30: =IF(AU30="","",BI30+BL30) ->  | BR30: =IF(AU30="","",(0.0126+(((0.01739-(0.1087*(AU30/1000)))/SQRT(BU30))))*(BO30/(AU30/1000))*(POWER(BU30,2)/(2*9.8))) ->  | BU30: =IF(AU30="","",(BB30/1000/60)/((3.141592*POWER((AU30/2/1000),2)))) ->  | BW30: =IF(BU30="","",IF(BU30<2,"","×")) -> 
BD32: =IF(BB32="","",BB32/60) ->  | BO32: =IF(AU32="","",BI32+BL32) ->  | BR32: =IF(AU32="","",(0.0126+(((0.01739-(0.1087*(AU32/1000)))/SQRT(BU32))))*(BO32/(AU32/1000))*(POWER(BU32,2)/(2*9.8))) ->  | BU32: =IF(AU32="","",(BB32/1000/60)/((3.141592*POWER((AU32/2/1000),2)))) ->  | BW32: =IF(BU32="","",IF(BU32<2,"","×")) -> 
BD34: =IF(BB34="","",BB34/60) ->  | BO34: =IF(AU34="","",BI34+BL34) ->  | BR34: =IF(AU34="","",(0.0126+(((0.01739-(0.1087*(AU34/1000)))/SQRT(BU34))))*(BO34/(AU34/1000))*(POWER(BU34,2)/(2*9.8))) ->  | BU34: =IF(AU34="","",(BB34/1000/60)/((3.141592*POWER((AU34/2/1000),2)))) ->  | BW34: =IF(BU34="","",IF(BU34<2,"","×")) -> 
BD36: =IF(BB36="","",BB36/60) ->  | BO36: =IF(AU36="","",BI36+BL36) ->  | BR36: =IF(AU36="","",(0.0126+(((0.01739-(0.1087*(AU36/1000)))/SQRT(BU36))))*(BO36/(AU36/1000))*(POWER(BU36,2)/(2*9.8))) ->  | BU36: =IF(AU36="","",(BB36/1000/60)/((3.141592*POWER((AU36/2/1000),2)))) ->  | BW36: =IF(BU36="","",IF(BU36<2,"","×")) -> 
AQ38: ～ | BD38: =IF(BB38="","",BB38/60) ->  | BO38: =IF(AU38="","",BI38+BL38) ->  | BR38: =IF(AU38="","",(0.0126+(((0.01739-(0.1087*(AU38/1000)))/SQRT(BU38))))*(BO38/(AU38/1000))*(POWER(BU38,2)/(2*9.8))) ->  | BU38: =IF(AU38="","",(BB38/1000/60)/((3.141592*POWER((AU38/2/1000),2)))) ->  | BW38: =IF(BU38="","",IF(BU38<2,"","×")) -> 
AQ40: ～ | BD40: =IF(BB40="","",BB40/60) ->  | BO40: =IF(AU40="","",BI40+BL40) ->  | BR40: =IF(AU40="","",(0.0126+(((0.01739-(0.1087*(AU40/1000)))/SQRT(BU40))))*(BO40/(AU40/1000))*(POWER(BU40,2)/(2*9.8))) ->  | BU40: =IF(AU40="","",(BB40/1000/60)/((3.141592*POWER((AU40/2/1000),2)))) ->  | BW40: =IF(BU40="","",IF(BU40<2,"","×")) -> 
AQ42: ～ | BD42: =IF(BB42="","",BB42/60) ->  | BO42: =IF(AU42="","",BI42+BL42) ->  | BR42: =IF(AU42="","",(0.0126+(((0.01739-(0.1087*(AU42/1000)))/SQRT(BU42))))*(BO42/(AU42/1000))*(POWER(BU42,2)/(2*9.8))) ->  | BU42: =IF(AU42="","",(BB42/1000/60)/((3.141592*POWER((AU42/2/1000),2)))) ->  | BW42: =IF(BU42="","",IF(BU42<2,"","×")) -> 
AQ44: ～ | BD44: =IF(BB44="","",BB44/60) ->  | BO44: =IF(AU44="","",BI44+BL44) ->  | BR44: =IF(AU44="","",(0.0126+(((0.01739-(0.1087*(AU44/1000)))/SQRT(BU44))))*(BO44/(AU44/1000))*(POWER(BU44,2)/(2*9.8))) ->  | BU44: =IF(AU44="","",(BB44/1000/60)/((3.141592*POWER((AU44/2/1000),2)))) ->  | BW44: =IF(BU44="","",IF(BU44<2,"","×")) -> 
AQ46: ～ | BD46: =IF(BB46="","",BB46/60) ->  | BO46: =IF(AU46="","",BI46+BL46) ->  | BR46: =IF(AU46="","",(0.0126+(((0.01739-(0.1087*(AU46/1000)))/SQRT(BU46))))*(BO46/(AU46/1000))*(POWER(BU46,2)/(2*9.8))) ->  | BU46: =IF(AU46="","",(BB46/1000/60)/((3.141592*POWER((AU46/2/1000),2)))) ->  | BW46: =IF(BU46="","",IF(BU46<2,"","×")) -> 
AQ48: ～ | BD48: =IF(BB48="","",BB48/60) ->  | BO48: =IF(AU48="","",BI48+BL48) ->  | BR48: =IF(AU48="","",(0.0126+(((0.01739-(0.1087*(AU48/1000)))/SQRT(BU48))))*(BO48/(AU48/1000))*(POWER(BU48,2)/(2*9.8))) ->  | BU48: =IF(AU48="","",(BB48/1000/60)/((3.141592*POWER((AU48/2/1000),2)))) ->  | BW48: =IF(BU48="","",IF(BU48<2,"","×")) -> 
AQ50: ～ | BD50: =IF(BB50="","",BB50/60) ->  | BO50: =IF(AU50="","",BI50+BL50) ->  | BR50: =IF(AU50="","",(0.0126+(((0.01739-(0.1087*(AU50/1000)))/SQRT(BU50))))*(BO50/(AU50/1000))*(POWER(BU50,2)/(2*9.8))) ->  | BU50: =IF(AU50="","",(BB50/1000/60)/((3.141592*POWER((AU50/2/1000),2)))) ->  | BW50: =IF(BU50="","",IF(BU50<2,"","×")) -> 
AQ52: ～ | BD52: =IF(BB52="","",BB52/60) ->  | BO52: =IF(AU52="","",BI52+BL52) ->  | BR52: =IF(AU52="","",(0.0126+(((0.01739-(0.1087*(AU52/1000)))/SQRT(BU52))))*(BO52/(AU52/1000))*(POWER(BU52,2)/(2*9.8))) ->  | BU52: =IF(AU52="","",(BB52/1000/60)/((3.141592*POWER((AU52/2/1000),2)))) ->  | BW52: =IF(BU52="","",IF(BU52<2,"","×")) -> 
AQ54: ～ | BD54: =IF(BB54="","",BB54/60) ->  | BO54: =IF(AU54="","",BI54+BL54) ->  | BR54: =IF(AU54="","",(0.0126+(((0.01739-(0.1087*(AU54/1000)))/SQRT(BU54))))*(BO54/(AU54/1000))*(POWER(BU54,2)/(2*9.8))) ->  | BU54: =IF(AU54="","",(BB54/1000/60)/((3.141592*POWER((AU54/2/1000),2)))) ->  | BW54: =IF(BU54="","",IF(BU54<2,"","×")) -> 
AQ56: ～ | BD56: =IF(BB56="","",BB56/60) ->  | BO56: =IF(AU56="","",BI56+BL56) ->  | BR56: =IF(AU56="","",(0.0126+(((0.01739-(0.1087*(AU56/1000)))/SQRT(BU56))))*(BO56/(AU56/1000))*(POWER(BU56,2)/(2*9.8))) ->  | BU56: =IF(AU56="","",(BB56/1000/60)/((3.141592*POWER((AU56/2/1000),2)))) ->  | BW56: =IF(BU56="","",IF(BU56<2,"","×")) -> 
AQ58: ～ | BD58: =IF(BB58="","",BB58/60) ->  | BO58: =IF(AU58="","",BI58+BL58) ->  | BR58: =IF(AU58="","",(0.0126+(((0.01739-(0.1087*(AU58/1000)))/SQRT(BU58))))*(BO58/(AU58/1000))*(POWER(BU58,2)/(2*9.8))) ->  | BU58: =IF(AU58="","",(BB58/1000/60)/((3.141592*POWER((AU58/2/1000),2)))) ->  | BW58: =IF(BU58="","",IF(BU58<2,"","×")) -> 
AQ60: ～ | BD60: =IF(BB60="","",BB60/60) ->  | BO60: =IF(AU60="","",BI60+BL60) ->  | BR60: =IF(AU60="","",(0.0126+(((0.01739-(0.1087*(AU60/1000)))/SQRT(BU60))))*(BO60/(AU60/1000))*(POWER(BU60,2)/(2*9.8))) ->  | BU60: =IF(AU60="","",(BB60/1000/60)/((3.141592*POWER((AU60/2/1000),2)))) ->  | BW60: =IF(BU60="","",IF(BU60<2,"","×")) -> 
AQ62: ～ | BD62: =IF(BB62="","",BB62/60) ->  | BO62: =IF(AU62="","",BI62+BL62) ->  | BR62: =IF(AU62="","",(0.0126+(((0.01739-(0.1087*(AU62/1000)))/SQRT(BU62))))*(BO62/(AU62/1000))*(POWER(BU62,2)/(2*9.8))) ->  | BU62: =IF(AU62="","",(BB62/1000/60)/((3.141592*POWER((AU62/2/1000),2)))) ->  | BW62: =IF(BU62="","",IF(BU62<2,"","×")) -> 
AQ64: ～ | BD64: =IF(BB64="","",BB64/60) ->  | BO64: =IF(AU64="","",BI64+BL64) ->  | BR64: =IF(AU64="","",(0.0126+(((0.01739-(0.1087*(AU64/1000)))/SQRT(BU64))))*(BO64/(AU64/1000))*(POWER(BU64,2)/(2*9.8))) ->  | BU64: =IF(AU64="","",(BB64/1000/60)/((3.141592*POWER((AU64/2/1000),2)))) ->  | BW64: =IF(BU64="","",IF(BU64<2,"","×")) -> 
AQ66: ～ | BD66: =IF(BB66="","",BB66/60) ->  | BO66: =IF(AU66="","",BI66+BL66) ->  | BR66: =IF(AU66="","",(0.0126+(((0.01739-(0.1087*(AU66/1000)))/SQRT(BU66))))*(BO66/(AU66/1000))*(POWER(BU66,2)/(2*9.8))) ->  | BU66: =IF(AU66="","",(BB66/1000/60)/((3.141592*POWER((AU66/2/1000),2)))) ->  | BW66: =IF(BU66="","",IF(BU66<2,"","×")) -> 
AQ68: ～ | BD68: =IF(BB68="","",BB68/60) ->  | BO68: =IF(AU68="","",BI68+BL68) ->  | BR68: =IF(AU68="","",(0.0126+(((0.01739-(0.1087*(AU68/1000)))/SQRT(BU68))))*(BO68/(AU68/1000))*(POWER(BU68,2)/(2*9.8))) ->  | BU68: =IF(AU68="","",(BB68/1000/60)/((3.141592*POWER((AU68/2/1000),2)))) ->  | BW68: =IF(BU68="","",IF(BU68<2,"","×")) -> 
AQ70: ～ | BD70: =IF(BB70="","",BB70/60) ->  | BO70: =IF(AU70="","",BI70+BL70) ->  | BR70: =IF(AU70="","",(0.0126+(((0.01739-(0.1087*(AU70/1000)))/SQRT(BU70))))*(BO70/(AU70/1000))*(POWER(BU70,2)/(2*9.8))) ->  | BU70: =IF(AU70="","",(BB70/1000/60)/((3.141592*POWER((AU70/2/1000),2)))) ->  | BW70: =IF(BU70="","",IF(BU70<2,"","×")) -> 
AQ72: ～ | BD72: =IF(BB72="","",BB72/60) ->  | BO72: =IF(AU72="","",BI72+BL72) ->  | BR72: =IF(AU72="","",(0.0126+(((0.01739-(0.1087*(AU72/1000)))/SQRT(BU72))))*(BO72/(AU72/1000))*(POWER(BU72,2)/(2*9.8))) ->  | BU72: =IF(AU72="","",(BB72/1000/60)/((3.141592*POWER((AU72/2/1000),2)))) ->  | BW72: =IF(BU72="","",IF(BU72<2,"","×")) -> 
AQ74: ～ | BD74: =IF(BB74="","",BB74/60) ->  | BO74: =IF(AU74="","",BI74+BL74) ->  | BR74: =IF(AU74="","",(0.0126+(((0.01739-(0.1087*(AU74/1000)))/SQRT(BU74))))*(BO74/(AU74/1000))*(POWER(BU74,2)/(2*9.8))) ->  | BU74: =IF(AU74="","",(BB74/1000/60)/((3.141592*POWER((AU74/2/1000),2)))) ->  | BW74: =IF(BU74="","",IF(BU74<2,"","×")) -> 
A76: 同 時 使 用 水 栓 の 想 定 | AO76: 計 | BI76: =SUM(BI6:BK75) -> 0 | BL76: =SUM(BL6:BN75) -> 0 | BO76: =SUM(BO7:BQ75) -> 0 | BR76: =SUM(BR6:BT75) -> 0
AO80: 配水管 | AU80: Mpa | AX80: × | AZ80: 月別 | BF80: ＝ | BG80: 年間予想 | BJ80: =AR80*BC80 -> 0 | BM80: kg・f/c㎡ | BP80: × | BQ80: 10 | BR80: ＝ | BS80: 水頭 | BU80: =BJ80*10 -> 0 | BW80: m
A82: 記号 | C82: 取付器具 | I82: 水栓 | K82: 同時 | M82: 所要流量 | S82: 記号 | U82: 取付器具 | AA82: 水栓 | AC82: 同時 | AE82: 所要流量 | AO82: 水 圧 | AZ82: 水圧係数 | BG82: 最低水圧
K84: 使用 | AC84: 使用 | AO84: 水頭 | AQ84: =BU80 -> 0 | AT84: m | AU84: － | AV84: 水栓 | BA84: m | BB84: － | BC84: 5 | BD84: m | BE84: ＝ | BF84: 有効 | BH84: =AQ84-AX84-BC84 -> -5 | BK84: m | BL84: ≧ | BM84: 総損失 | BP84: =SUM(BR6:BT75) -> 0 | BS84: m | BU84: 判定 | BV84: =IF(BP84="","",IF(BP84<BH84,"◎","×")) -> ×
C85: 名 称 | I85: 口径 | M85: ℓ/分 | U85: 名 称 | AA85: 口径 | AE85: ℓ/分
K86: 有無 | AC86: 有無 | AV86: 高さ | BF86: 水頭 | BM86: 水 頭
A88: A | S88: I | AO88: 月 別 | AT88: 1月 | AV88: 0.63 | AY88: 2月 | BA88: 0.58 | BD88: 3月 | BF88: 0.63 | BI88: 4月 | BK88: 0.64 | BN88: 5月 | BP88: 0.65 | BS88: 6月 | BU88: 0.65
AO90: 水圧係数 | AT90: 7月 | AV90: 0.75 | AY90: 8月 | BA90: 0.77 | BD90: 9月 | BF90: 0.7 | BI90: 10月 | BK90: 0.69 | BN90: 11月 | BP90: 0.65 | BS90: 12月 | BU90: 0.64
A91: B | S91: J
AO92: 口径 | AT92: 13 | AZ92: 20 | BF92: 25 | BL92: 40 | BR92: 50
A94: C | S94: K
AO95: 直結給水 | AT95: 15 | AZ95: 37 | BF95: 58 | BL95: 150 | BR95: 235
A97: D | S97: L | AO97: 許容流量
AO99: 動水勾配標準値 | AT99: 400‰ | AZ99: 250‰ | BF99: 180‰ | BL99: 100‰ | BR99: 70‰
A100: E | S100: M
A103: F | S103: N
AO104: ＴＷ公式 | AR104: φ | AS104: 40 | AU104: ＝ | AV104: ( | BH104: ) | BK104: ×
A106: G | S106: O | BI106: 0.37 | BM106: 10 | BO106: ＝ | BQ106: =(POWER(AW104/(12.9*(POWER(BB108,0.57))),0.37))*10 -> 0 | BT106: =IF(BQ106>AS104,"不可","○") -> ○
AW108: 12.9 | AZ108: × | BB108: 0.1 | BF108: 0.57
A109: H | S109: P

Sheet DATA

Sheet HW＆Weston公式
A1: ウエストン公式(～φ５０） | AF1: 口径別管断面積
D2: 流量Q（L/min）⇒流速V（m/sec)の変換 | AF2: 13 | AH2: ⇒ | AI2: =(3.141592*POWER((AF2/2),2))/100 -> 1.32732262 | AL2: cm2
A3: 口径 | C3: 40 | J3: 2(m/sec)以下 | AF3: 20 | AH3: ⇒ | AI3: 3.141592 | AL3: cm2
A4: 流量 | C4: 150 | F4: L/min | I4: ⇒ | J4: 流速 | L4: =(C4/1000/60)/((3.141592*POWER(((C3/2/1000)),2))) -> 1.989437203 | S4: （m/sec) | AF4: 25 | AH4: ⇒ | AI4: 4.9087375 | AL4: cm2
B5: 管延長 | E5: 11 | H5: ｍ | AF5: 40 | AH5: ⇒ | AI5: 12.566368 | AL5: cm2
A6: 損失水頭 | AF6: 50 | AH6: ⇒ | AI6: 19.63495 | AL6: cm2
A7: H= | C7: （ | D7: 0.0126 | G7: ＋ | H7: 0.01739 | K7: － | L7: 0.1087 | O7: ・D | Q7: ） | R7: ・ | S7: L | T7: ・ | U7: V2 | AF7: 75 | AH7: ⇒ | AI7: 44.1786375 | AL7: cm2
J8: √V | S8: D | U8: 2g | AF8: 100 | AH8: ⇒ | AI8: 78.5398 | AL8: cm2
A9: H= | C9: （ | D9: 0.0126 | G9: ＋ | H9: 0.01739 | K9: － | L9: 0.1087 | O9: × | P9: =C3/1000 -> 0.04 | S9: ） | T9: ・ | U9: =E5 -> 11 | W9: ・ | X9: =POWER(L4,2) -> 3.957860383 | Z9: ＝ | AA9: =(D9+((H9-L9*P9)/H10))*(U9/U10)*(X9/X10) -> 1.213164471 | AF9: 150 | AH9: ⇒ | AI9: 176.71455 | AL9: cm2
H10: =SQRT(L4) -> 1.410474106 | U10: =C3/1000 -> 0.04 | X10: =2*9.8 -> 19.6 | AE10: m | AF10: 200 | AH10: ⇒ | AI10: 314.1592 | AL10: cm2
A11: ヘーゼンウイリアム公式（φ７５～）
A12: 動水勾配 Ｉ =10.666C－1.85D－4.87Q1.85
G13: 流速係数 | M13: 口径 | R13: 流量 | W13: 動水勾配
B14: I= | D14: 10.666 | G14: × | H14: 110 | J14: -1.85 | L14: × | M14: 100 | O14: -4.87 | Q14: × | R14: 145 | T14: 1.85 | V14: ＝ | W14: =10.666*POWER(H14,-1.85)*(POWER((M14/1000),-4.87))*(POWER(((R14/1000)/60),1.85)) -> 0.001907111578 | Z14: m
M15: （mm） | R15: (L/min）
A16: 損失水頭 H =10.666C－1.85D－4.87Q1.85L
G17: 流速係数 | M17: 口径 | R17: 流量 | Z17: 損失水頭
B18: H= | D18: 10.666 | G18: × | H18: 110 | J18: -1.85 | L18: × | M18: 100 | O18: -4.87 | Q18: × | R18: 829 | T18: 1.85 | V18: × | W18: 1000 | Y18: ＝ | Z18: =10.666*POWER(H18,-1.85)*(POWER((M18/1000),-4.87))*(POWER(((R18/1000)/60),1.85))*W18 -> 47.99225761 | AC18: m
M19: （mm） | R19: (L/min）
H20: =POWER(H18,-1.85) -> 0.0001672721089 | M20: =POWER(M18/1000,-4.87) -> 74131.02413 | R20: =POWER(((R18/1000)/60),1.85) -> 0.0003628658253
A21: 管内流速 V ＝0.35464・C・D0.63・I0.54
B22: V= | D22: 0.35464 | G22: × | H22: =H18 -> 110 | J22: × | K22: =M18 -> 100 | M22: 0.63 | O22: × | P22: =W14 -> 0.001907111578 | S22: ＝ | T22: =D22*H22*POWER((K22/1000),0.63)*P22 -> 0.0174404026 | X22: （m/sec)
A23: 管内径 D =1.6258・C－0.38・Q0.38・I-0.205
B24: D= | D24: 1.6258 | G24: × | H24: 110 | J24: -0.38 | L24: × | M24: 829 | P24: 0.38 | R24: × | S24: 0.1 | V24: -0.205 | X24: ＝ | Y24: =D24*POWER(H24,-0.38)*POWER(M24/60/1000,0.38)*POWER(S24,-0.205)*1000 -> 85.8402839 | AB24: (mm)
A25: 流量 | V25: 流量
B26: Q= | D26: 0.27853 | G26: × | H26: 110 | J26: × | K26: 75 | M26: 2.63 | O26: × | P26: 0.4 | S26: 0.54 | U26: ＝ | V26: =(D26*H26*POWER((K26/1000),2.63)*POWER(P26,0.54))*60*60 -> 73.97597249 | Z26: m3/H
